fUST/lending_fUST_20250206
["ID","MTS","AMOUNT","RATE_DAILY","PERIOD"]
[351735397,1738771231854,160.0,0.00019778,120]
[351735398,1738771268441,262.99,0.00010959,2]
[351735399,1738771272207,189.911145,0.00013699,2]
[351735400,1738771279346,1534.12,0.00010959,2]
[351735401,1738771289683,1278.44,0.00010959,2]
[351735402,1738771300167,1065.36,0.00010959,2]
[351735403,1738771310691,887.8,0.00010959,2]
[351735404,1738771321534,739.84,0.00010959,2]
[351735405,1738771332341,616.53,0.00010959,2]
[351735406,1738771340337,7440.0,0.00014,2]
[351735407,1738771342919,513.78,0.00010959,2]
[351735408,1738771355971,428.15,0.00010959,2]
[351735409,1738771360026,10000.0,0.00014,2]
[351735410,1738771366504,356.79,0.00010959,2]
[351735411,1738771367309,10000.0,0.00014,2]
[351735413,1738771377063,10000.0,0.00014,2]
[351735414,1738771377097,297.32,0.00010959,2]
[351735415,1738771387797,247.77,0.00010959,2]
[351735416,1738771391828,15011.98279746,0.00015,2]
[351735417,1738771398357,206.47,0.00010959,2]
[351735418,1738771408902,172.06,0.00010959,2]
[351735419,1738771416148,1000.0,0.00015,9]
[351735420,1738771419506,860.34,0.00010959,2]
[351735421,1738771447121,1000.0,0.00015,8]
[351735595,1738771590960,311.282069,0.00013973,2]
[351735656,1738771832590,-280.62380415,0.00015051,2]
[351735658,1738771832600,-154.84,0.00015144,2]
[351735660,1738771832611,-181.35910405,0.0001515,2]
[351735662,1738771832620,-161.13308677,0.00015151,2]
[351735664,1738771832630,-181.35910404,0.00015151,2]
[351735666,1738771832639,-181.35910404,0.00015152,2]
[351735668,1738771832651,-5303.99932004,0.00015152,2]
[351735670,1738771832660,-1264.46733845,0.00015154,2]
[351735672,1738771832669,-1264.46733845,0.00015154,2]
[351735674,1738771832679,-1264.46733845,0.00015154,2]
[351735676,1738771832688,-1264.46733845,0.00015154,2]
[351735678,1738771832697,-1264.46733845,0.00015154,2]
[351735680,1738771832707,-1264.46733845,0.00015154,2]
[351735682,1738771832716,-1264.46733845,0.00015154,2]
[351735685,1738771832733,-1264.46733845,0.00015154,2]
[351735687,1738771832749,-1264.46733845,0.00015154,2]
[351735691,1738771832763,-1264.46733845,0.00015154,2]
[351735693,1738771832777,-1264.46733845,0.00015154,2]
[351735696,1738771832793,-1264.46733845,0.00015154,2]
[351735699,1738771832814,-1264.46733845,0.00015154,2]
[351735701,1738771832829,-1264.46733845,0.00015154,2]
[351735704,1738771832845,-1264.46733845,0.00015154,2]
[351735707,1738771832860,-1264.46733845,0.00015154,2]
[351735709,1738771832874,-1264.46733845,0.00015154,2]
[351735712,1738771832889,-1264.46733845,0.00015154,2]
[351735714,1738771832903,-1264.46733845,0.00015154,2]
[351735717,1738771832917,-1264.46,0.00015154,2]
[351735719,1738771832929,-184.57,0.00015154,2]
[351735721,1738771832941,-3000.0,0.00015157,2]
[351735724,1738771832956,-154.84,0.00015174,2]
[351735727,1738771832971,-300.0,0.00015183,2]
[351735729,1738771832987,-10616.4138167,0.00015184,2]
[351735732,1738771833003,-154.84,0.00015239,2]
[351735734,1738771833016,-9432.12,0.00015249,2]
[351735737,1738771833027,-512.14,0.00015249,2]
[351735739,1738771833040,-500.0,0.00015249,2]
[351735742,1738771833061,-500.71843361,0.00015249,2]
[351735744,1738771833074,-500.0,0.00015249,2]
[351735746,1738771833087,-594.59,0.00015249,2]
[351735749,1738771833101,-500.0,0.00015249,2]
[351735751,1738771833114,-506.6501405,0.00015249,2]
[351735752,1738771833126,-6593.34,0.00015249,2]
[351735753,1738771833143,-3584.4,0.00015249,2]
[351735754,1738771833156,-2230.95,0.00015249,2]
[351735755,1738771833170,-1359.93,0.00015249,2]
[351735756,1738771833183,-1472.35,0.00015249,2]
[351735757,1738771833196,-500.0,0.00015249,2]
[351735758,1738771833209,-1147.83,0.00015249,2]
[351735759,1738771833223,-500.0,0.00015249,2]
[351735760,1738771833236,-500.0,0.00015249,2]
[351735761,1738771833249,-3289.03,0.00015249,2]
[351735762,1738771833262,-500.0,0.00015249,2]
[351735763,1738771833275,-500.0,0.00015249,2]
[351735764,1738771833288,-500.0,0.00015249,2]
[351735765,1738771833303,-3047.13,0.00015249,2]
[351735766,1738771833315,-754.83,0.00015249,2]
[351735767,1738771833329,-7627.12,0.00015249,2]
[351735769,1738771833341,-500.0,0.00015249,2]
[351735771,1738771833354,-3602.87,0.00015249,2]
[351735774,1738771833373,-2314.53,0.00015249,2]
[351735776,1738771833387,-798.11,0.0001525,2]
[351735778,1738771833400,-801.81,0.0001525,2]
[351735781,1738771833414,-16295.46,0.0001525,2]
[351735783,1738771833428,-500.0,0.0001525,2]
[351735786,1738771833441,-500.0,0.0001525,2]
[351735788,1738771833454,-500.0,0.0001525,2]
[351735790,1738771833467,-500.0,0.0001525,2]
[351735793,1738771833480,-500.0,0.0001525,2]
[351735795,1738771833493,-500.0,0.0001525,2]
[351735797,1738771833506,-500.0,0.0001525,2]
[351735799,1738771833518,-500.0,0.0001525,2]
[351735802,1738771833531,-622.16609661,0.0001525,2]
[351735804,1738771833544,-500.0,0.0001525,2]
[351735807,1738771833559,-500.0,0.0001525,2]
[351735809,1738771833572,-500.0,0.0001525,2]
[351735811,1738771833586,-500.0,0.0001525,2]
[351735814,1738771833599,-500.0,0.0001525,2]
[351735816,1738771833614,-500.0,0.0001525,2]
[351735819,1738771833628,-500.0,0.0001525,2]
[351735821,1738771833641,-500.0,0.0001525,2]
[351735823,1738771833653,-500.0,0.0001525,2]
[351735826,1738771833667,-500.0,0.0001525,2]
[351735828,1738771833680,-500.0,0.0001525,2]
[351735830,1738771833692,-500.0,0.0001525,2]
[351735832,1738771833705,-500.0,0.0001525,2]
[351735835,1738771833718,-8035.53,0.0001525,2]
[351735837,1738771833730,-500.0,0.0001525,2]
[351735839,1738771833743,-500.0,0.0001525,2]
[351735842,1738771833757,-500.0,0.0001525,2]
[351735844,1738771833769,-500.0,0.0001525,2]
[351735846,1738771833782,-290.79053234,0.0001525,2]
[351735849,1738771833795,-500.0,0.0001525,2]
[351735851,1738771833812,-1207.53,0.0001525,2]
[351735854,1738771833825,-500.0,0.0001525,2]
[351735856,1738771833839,-500.0,0.0001525,2]
[351735858,1738771833852,-955.96,0.0001525,2]
[351735860,1738771833864,-152.0,0.0001525,2]
[351735863,1738771833878,-500.0,0.0001525,2]
[351735865,1738771833891,-500.0,0.0001525,2]
[351735868,1738771833904,-500.0,0.0001525,2]
[351735870,1738771833921,-2909.99,0.0001525,2]
[351735873,1738771833934,-500.0,0.0001525,2]
[351735875,1738771833947,-644.66,0.0001525,2]
[351735877,1738771833959,-2314.53,0.0001525,2]
[351735880,1738771833973,-2314.53,0.0001525,2]
[351735882,1738771833987,-2314.53,0.0001525,2]
[351735885,1738771834001,-2314.53,0.0001525,2]
[351735887,1738771834014,-2314.53,0.0001525,2]
[351735889,1738771834027,-2314.53,0.0001525,2]
[351735892,1738771834041,-2314.53,0.0001525,2]
[351735894,1738771834058,-2314.53,0.0001525,2]
[351735896,1738771834072,-2314.53,0.0001525,2]
[351735899,1738771834086,-2314.53,0.0001525,2]
[351735901,1738771834099,-500.0,0.00015251,2]
[351735903,1738771834112,-500.0,0.00015251,2]
[351735906,1738771834125,-500.0,0.00015251,2]
[351735908,1738771834139,-559.34,0.00015251,2]
[351735910,1738771834151,-500.0,0.00015251,2]
[351735913,1738771834161,-456.78622391,0.00015251,2]
[351735915,1738771834172,-829.94,0.00015251,2]
[351735917,1738771834182,-500.0,0.00015251,2]
[351735919,1738771834191,-503.62610359,0.00015251,2]
[351735921,1738771834201,-1100.55,0.00015251,2]
[351735923,1738771834211,-500.0,0.00015251,2]
[351735925,1738771834222,-500.0,0.00015251,2]
[351735953,1738771834502,-501.12265967,0.00015251,2]
[351735955,1738771834516,-500.0,0.00015251,2]
[351735957,1738771834525,-562.19572288,0.00015251,2]
[351735959,1738771834535,-500.0,0.00015251,2]
[351735961,1738771834545,-500.0,0.00015251,2]
[351735963,1738771834558,-500.0,0.00015251,2]
[351735965,1738771834568,-598.07911379,0.00015251,2]
[351735967,1738771834577,-500.0,0.00015251,2]
[351735969,1738771834587,-500.0,0.00015251,2]
[351735971,1738771834597,-500.0,0.00015251,2]
[351735973,1738771834607,-560.98,0.00015251,2]
[351735975,1738771834616,-611.31116454,0.00015251,2]
[351735978,1738771834626,-500.0,0.00015251,2]
[351735980,1738771834636,-500.0,0.00015251,2]
[351735982,1738771834646,-571.00024054,0.00015251,2]
[351735984,1738771834655,-500.0,0.00015251,2]
[351735986,1738771834665,-3101.36,0.00015251,2]
[351735988,1738771834674,-2010.42,0.00015251,2]
[351735990,1738771834684,-500.0,0.00015251,2]
[351735992,1738771834693,-500.0,0.00015251,2]
[351735994,1738771834702,-500.0,0.00015251,2]
[351735996,1738771834712,-500.0,0.00015251,2]
[351735998,1738771834721,-198.24497655,0.00015251,2]
[351736000,1738771834730,-508.9,0.00015251,2]
[351736002,1738771834739,-644.05176864,0.00015251,2]
[351736004,1738771834748,-524.8,0.00015251,2]
[351736006,1738771834758,-315.23120634,0.00015251,2]
[351736008,1738771834768,-500.0,0.00015251,2]
[351736010,1738771834778,-500.0,0.00015251,2]
[351736012,1738771834787,-500.0,0.00015251,2]
[351736014,1738771834797,-570.13,0.00015251,2]
[351736016,1738771834808,-500.0,0.00015251,2]
[351736018,1738771834818,-1519.94,0.00015251,2]
[351736020,1738771834827,-500.0,0.00015251,2]
[351736022,1738771834837,-610.0,0.00015251,2]
[351736024,1738771834846,-500.0,0.00015251,2]
[351736026,1738771834855,-500.0,0.00015251,2]
[351736028,1738771834865,-1431.74,0.00015251,2]
[351736030,1738771834875,-500.81672919,0.00015251,2]
[351736032,1738771834884,-500.0,0.00015251,2]
[351736034,1738771834894,-1015.27,0.00015251,2]
[351736036,1738771834904,-500.0,0.00015251,2]
[351736038,1738771834914,-500.0,0.00015251,2]
[351736040,1738771834924,-355.15705194,0.00015251,2]
[351736042,1738771834933,-500.0,0.00015251,2]
[351736044,1738771834942,-500.0,0.00015251,2]
[351736046,1738771834951,-2396.13,0.00015251,2]
[351736048,1738771834961,-500.0,0.00015251,2]
[351736050,1738771834971,-500.0,0.00015251,2]
[351736052,1738771834981,-500.0,0.00015251,2]
[351736054,1738771834991,-1110.03,0.00015251,2]
[351736056,1738771835000,-500.0,0.00015251,2]
[351736058,1738771835009,-500.0,0.00015251,2]
[351736060,1738771835019,-500.0,0.00015251,2]
[351736062,1738771835028,-500.0,0.00015251,2]
[351736064,1738771835038,-524.46,0.00015251,2]
[351736066,1738771835047,-500.0,0.00015251,2]
[351736068,1738771835060,-500.0,0.00015251,2]
[351736070,1738771835069,-500.0,0.00015251,2]
[351736072,1738771835079,-500.0,0.00015251,2]
[351736074,1738771835089,-500.0,0.00015251,2]
[351736076,1738771835099,-500.0,0.00015251,2]
[351736078,1738771835108,-500.0,0.00015251,2]
[351736080,1738771835117,-500.0,0.00015251,2]
[351736082,1738771835127,-500.0,0.00015251,2]
[351736084,1738771835137,-638.61211102,0.00015251,2]
[351736086,1738771835147,-500.0,0.00015251,2]
[351736088,1738771835157,-500.0,0.00015251,2]
[351736090,1738771835166,-274.96370318,0.00015251,2]
[351736092,1738771835175,-500.0,0.00015251,2]
[351736094,1738771835185,-547.19,0.00015251,2]
[351736096,1738771835194,-1651.64,0.00015251,2]
[351736098,1738771835203,-500.0,0.00015251,2]
[351736100,1738771835212,-1859.31,0.00015251,2]
[351736102,1738771835221,-500.0,0.00015251,2]
[351736104,1738771835231,-500.0,0.00015251,2]
[351736106,1738771835240,-648.66,0.00015251,2]
[351736108,1738771835250,-500.0,0.00015251,2]
[351736110,1738771835259,-504.36582995,0.00015251,2]
[351736112,1738771835268,-500.0,0.00015251,2]
[351736114,1738771835277,-500.0,0.00015251,2]
[351736116,1738771835286,-500.0,0.00015251,2]
[351736118,1738771835296,-760.92,0.00015251,2]
[351736120,1738771835307,-500.0,0.00015251,2]
[351736122,1738771835317,-500.0,0.00015251,2]
[351736124,1738771835326,-540.13,0.00015251,2]
[351736126,1738771835336,-502.59485842,0.00015251,2]
[351736128,1738771835345,-271.95083558,0.00015251,2]
[351736130,1738771835354,-500.0,0.00015251,2]
[351736132,1738771835364,-732.91,0.00015251,2]
[351736134,1738771835377,-500.0,0.00015251,2]
[351736136,1738771835387,-1759.5,0.00015251,2]
[351736138,1738771835396,-500.0,0.00015251,2]
[351736140,1738771835406,-1024.48,0.00015251,2]
[351736142,1738771835415,-1024.48,0.00015251,2]
[351736144,1738771835425,-1024.48,0.00015251,2]
[351736146,1738771835434,-500.0,0.00015251,2]
[351736148,1738771835444,-503.71216868,0.00015251,2]
[351736150,1738771835454,-1519.14,0.00015251,2]
[351736152,1738771835464,-502.01378941,0.00015251,2]
[351736154,1738771835474,-500.0,0.00015251,2]
[351736156,1738771835484,-504.24252704,0.00015251,2]
[351736158,1738771835493,-500.0,0.00015251,2]
[351736160,1738771835503,-1156.83,0.00015251,2]
[351736162,1738771835512,-503.05122479,0.00015251,2]
[351736164,1738771835522,-473.66079443,0.00015251,2]
[351736166,1738771835531,-815.58,0.00015251,2]
[351736168,1738771835541,-506.18647945,0.00015251,2]
[351736170,1738771835552,-928.75,0.00015251,2]
[351736172,1738771835562,-500.0,0.00015251,2]
[351736174,1738771835572,-547.40715514,0.00015251,2]
[351736176,1738771835582,-152.29136636,0.00015251,2]
[351736178,1738771835592,-500.0,0.00015251,2]
[351736180,1738771835603,-500.0,0.00015251,2]
[351736182,1738771835613,-500.0,0.00015251,2]
[351736184,1738771835623,-500.0,0.00015251,2]
[351736186,1738771835632,-1013.33,0.00015251,2]
[351736188,1738771835641,-1557.86,0.00015251,2]
[351736190,1738771835651,-500.0,0.00015251,2]
[351736192,1738771835660,-500.0,0.00015251,2]
[351736194,1738771835670,-500.0,0.00015251,2]
[351736196,1738771835680,-500.0,0.00015251,2]
[351736198,1738771835690,-507.17358388,0.00015251,2]
[351736200,1738771835699,-500.0,0.00015251,2]
[351736202,1738771835709,-686.6,0.00015251,2]
[351736204,1738771835718,-504.73756369,0.00015251,2]
[351736206,1738771835727,-501.04664382,0.00015251,2]
[351736208,1738771835736,-1229.79,0.00015251,2]
[351736210,1738771835747,-687.85,0.00015251,2]
[351736212,1738771835756,-500.0,0.00015251,2]
[351736214,1738771835765,-702.48,0.00015251,2]
[351736216,1738771835775,-500.0,0.00015251,2]
[351736218,1738771835785,-500.0,0.00015251,2]
[351736220,1738771835794,-1082.77,0.00015251,2]
[351736222,1738771835805,-542.72,0.00015251,2]
[351736225,1738771835814,-372.56220049,0.00015251,2]
[351736226,1738771835823,-317.61058948,0.00015251,2]
[351736229,1738771835833,-2020.19,0.00015251,2]
[351736231,1738771835843,-500.0,0.00015251,2]
[351736233,1738771835852,-385.87795808,0.00015251,2]
[351736235,1738771835862,-500.0,0.00015251,2]
[351736237,1738771835871,-500.0,0.00015251,2]
[351736239,1738771835880,-500.0,0.00015251,2]
[351736241,1738771835889,-500.0,0.00015251,2]
[351736243,1738771835898,-500.0,0.00015251,2]
[351736245,1738771835908,-609.77,0.00015251,2]
[351736247,1738771835918,-500.0,0.00015251,2]
[351736249,1738771835927,-500.0,0.00015251,2]
[351736251,1738771835937,-500.0,0.00015251,2]
[351736253,1738771835947,-500.0,0.00015251,2]
[351736255,1738771835957,-500.0,0.00015251,2]
[351736257,1738771835967,-500.0,0.00015251,2]
[351736259,1738771835977,-840.61,0.00015251,2]
[351736261,1738771835986,-500.0,0.00015251,2]
[351736263,1738771835996,-500.0,0.00015251,2]
[351736265,1738771836006,-500.0,0.00015251,2]
[351736267,1738771836015,-500.0,0.00015251,2]
[351736269,1738771836025,-500.0,0.00015251,2]
[351736271,1738771836035,-500.0,0.00015251,2]
[351736273,1738771836043,-638.72,0.00015251,2]
[351736275,1738771836058,-500.0,0.00015251,2]
[351736277,1738771836069,-500.0,0.00015251,2]
[351736279,1738771836078,-500.0,0.00015251,2]
[351736281,1738771836088,-500.0,0.00015251,2]
[351736283,1738771836099,-812.3,0.00015251,2]
[351736285,1738771836108,-788.16,0.00015251,2]
[351736287,1738771836118,-500.0,0.00015251,2]
[351736289,1738771836127,-500.0,0.00015251,2]
[351736291,1738771836137,-500.0,0.00015251,2]
[351736293,1738771836146,-622.45327861,0.00015251,2]
[351736295,1738771836155,-2928.28,0.00015251,2]
[351736297,1738771836165,-820.61,0.00015251,2]
[351736299,1738771836175,-542.81,0.00015251,2]
[351736301,1738771836185,-3407.39,0.00015251,2]
[351736303,1738771836195,-500.0,0.00015251,2]
[351736305,1738771836204,-8551.82,0.00015251,2]
[351736307,1738771836214,-500.0,0.00015251,2]
[351736309,1738771836224,-500.0,0.00015251,2]
[351736311,1738771836234,-500.0,0.00015251,2]
[351736313,1738771836243,-500.0,0.00015251,2]
[351736315,1738771836253,-500.0,0.00015251,2]
[351736317,1738771836263,-691.63,0.00015251,2]
[351736319,1738771836273,-500.0,0.00015251,2]
[351736321,1738771836283,-500.0,0.00015251,2]
[351736323,1738771836292,-500.0,0.00015251,2]
[351736325,1738771836306,-500.0,0.00015251,2]
[351736327,1738771836316,-4475.16,0.00015251,2]
[351736329,1738771836327,-500.0,0.00015251,2]
[351736331,1738771836336,-574.96233317,0.00015251,2]
[351736333,1738771836347,-9497.5,0.00015251,2]
[351736335,1738771836356,-9497.5,0.00015251,2]
[351736337,1738771836370,-9497.5,0.00015251,2]
[351736339,1738771836380,-500.0,0.00015251,2]
[351736341,1738771836390,-500.0,0.00015251,2]
[351736343,1738771836400,-500.0,0.00015251,2]
[351736345,1738771836413,-3103.75,0.00015251,2]
[351736347,1738771836422,-500.0,0.00015251,2]
[351736349,1738771836432,-500.0,0.00015251,2]
[351736351,1738771836442,-500.0,0.00015251,2]
[351736353,1738771836452,-500.0,0.00015251,2]
[351736355,1738771836462,-500.0,0.00015251,2]
[351736357,1738771836471,-681.05,0.00015251,2]
[351736359,1738771836480,-500.0,0.00015251,2]
[351736361,1738771836491,-500.0,0.00015251,2]
[351736363,1738771836501,-500.0,0.00015251,2]
[351736365,1738771836511,-500.0,0.00015251,2]
[351736367,1738771836520,-500.0,0.00015251,2]
[351736369,1738771836530,-500.0,0.00015251,2]
[351736371,1738771836540,-603.73,0.00015251,2]
[351736373,1738771836549,-2920.72,0.00015251,2]
[351736376,1738771836563,-500.0,0.00015251,2]
[351736378,1738771836573,-1185.03,0.00015251,2]
[351736380,1738771836582,-500.0,0.00015251,2]
[351736382,1738771836591,-500.0,0.00015251,2]
[351736384,1738771836601,-500.0,0.00015251,2]
[351736386,1738771836611,-500.0,0.00015251,2]
[351736388,1738771836620,-4093.35,0.00015251,2]
[351736390,1738771836630,-501.84196291,0.00015251,2]
[351736392,1738771836639,-500.0,0.00015251,2]
[351736394,1738771836649,-500.0,0.00015251,2]
[351736395,1738771836658,-1477.43,0.00015251,2]
[351736398,1738771836668,-500.0,0.00015251,2]
[351736400,1738771836679,-500.0,0.00015251,2]
[351736402,1738771836688,-703.77,0.00015251,2]
[351736404,1738771836697,-500.0,0.00015251,2]
[351736406,1738771836708,-500.0,0.00015251,2]
[351736408,1738771836717,-500.0,0.00015251,2]
[351736410,1738771836727,-500.0,0.00015251,2]
[351736412,1738771836736,-500.0,0.00015251,2]
[351736414,1738771836745,-1006.23,0.00015251,2]
[351736416,1738771836755,-1401.79,0.00015251,2]
[351736418,1738771836765,-504.12616618,0.00015251,2]
[351736420,1738771836775,-500.0,0.00015251,2]
[351736422,1738771836786,-500.0,0.00015251,2]
[351736424,1738771836796,-500.0,0.00015251,2]
[351736426,1738771836817,-500.0,0.00015251,2]
[351736428,1738771836828,-500.0,0.00015251,2]
[351736430,1738771836839,-500.0,0.00015251,2]
[351736432,1738771836849,-743.02,0.00015251,2]
[351736435,1738771836859,-1377.9,0.00015251,2]
[351736437,1738771836870,-552.47,0.00015251,2]
[351736438,1738771836880,-690.33,0.00015251,2]
[351736440,1738771836890,-500.0,0.00015251,2]
[351736442,1738771836900,-500.0,0.00015251,2]
[351736444,1738771836910,-500.0,0.00015251,2]
[351736447,1738771836921,-500.0,0.00015251,2]
[351736449,1738771836931,-500.0,0.00015251,2]
[351736451,1738771836941,-8576.08,0.00015251,2]
[351736453,1738771836951,-500.0,0.00015251,2]
[351736455,1738771836960,-1722.46,0.00015251,2]
[351736457,1738771836970,-500.0,0.00015251,2]
[351736459,1738771836980,-500.0,0.00015251,2]
[351736461,1738771836990,-1584.62,0.00015251,2]
[351736463,1738771837000,-500.0,0.00015251,2]
[351736465,1738771837011,-500.0,0.00015251,2]
[351736467,1738771837020,-500.0,0.00015251,2]
[351736469,1738771837030,-631.98,0.00015251,2]
[351736471,1738771837040,-500.0,0.00015251,2]
[351736473,1738771837050,-500.0,0.00015251,2]
[351736475,1738771837066,-500.0,0.00015251,2]
[351736477,1738771837076,-500.0,0.00015251,2]
[351736479,1738771837086,-500.0,0.00015251,2]
[351736481,1738771837095,-500.0,0.00015251,2]
[351736483,1738771837105,-1031.17,0.00015251,2]
[351736485,1738771837114,-3062.68,0.00015251,2]
[351736487,1738771837123,-500.0,0.00015251,2]
[351736489,1738771837133,-500.0,0.00015251,2]
[351736491,1738771837142,-500.0,0.00015251,2]
[351736493,1738771837151,-500.0,0.00015251,2]
[351736495,1738771837161,-500.0,0.00015251,2]
[351736497,1738771837169,-500.0,0.00015251,2]
[351736499,1738771837178,-500.0,0.00015251,2]
[351736501,1738771837186,-500.0,0.00015251,2]
[351736503,1738771837196,-500.0,0.00015251,2]
[351736505,1738771837206,-500.0,0.00015251,2]
[351736507,1738771837215,-338.18190631,0.00015251,2]
[351736509,1738771837224,-500.0,0.00015251,2]
[351736511,1738771837233,-500.0,0.00015251,2]
[351736513,1738771837243,-500.0,0.00015251,2]
[351736515,1738771837252,-500.0,0.00015251,2]
[351736517,1738771837262,-500.0,0.00015251,2]
[351736519,1738771837271,-500.0,0.00015251,2]
[351736521,1738771837281,-500.0,0.00015251,2]
[351736523,1738771837291,-500.0,0.00015251,2]
[351736525,1738771837301,-1743.33,0.00015251,2]
[351736527,1738771837315,-1209.72,0.00015251,2]
[351736529,1738771837324,-500.0,0.00015251,2]
[351736531,1738771837334,-1536.72,0.00015251,2]
[351736533,1738771837343,-500.0,0.00015251,2]
[351736535,1738771837353,-500.0,0.00015251,2]
[351736537,1738771837363,-169.82424985,0.00015251,2]
[351736539,1738771837375,-500.0,0.00015251,2]
[351736541,1738771837386,-500.0,0.00015251,2]
[351736543,1738771837396,-635.25,0.00015251,2]
[351736545,1738771837406,-500.0,0.00015251,2]
[351736547,1738771837419,-500.0,0.00015251,2]
[351736549,1738771837428,-869.69,0.00015251,2]
[351736551,1738771837438,-2314.53,0.00015251,2]
[351736553,1738771837447,-2314.53,0.00015251,2]
[351736554,1738771837459,-2314.53,0.00015251,2]
[351736555,1738771837470,-2314.53,0.00015251,2]
[351736556,1738771837480,-2314.53,0.00015251,2]
[351736557,1738771837490,-2314.53,0.00015251,2]
[351736558,1738771837500,-500.0,0.00015251,2]
[351736559,1738771837510,-2314.53,0.00015251,2]
[351736560,1738771837520,-2314.53,0.00015251,2]
[351736561,1738771837530,-500.0,0.00015251,2]
[351736562,1738771837540,-2314.53,0.00015251,2]
[351736563,1738771837551,-2314.53,0.00015251,2]
[351736564,1738771837565,-171.39519698,0.00015251,2]
[351736574,1738771837720,-500.0,0.00015251,2]
[351736577,1738771837730,-518.63703585,0.00015251,2]
[351736579,1738771837740,-500.0,0.00015251,2]
[351736581,1738771837750,-1024.48,0.00015252,2]
[351736582,1738771837759,-1024.48,0.00015252,2]
[351736584,1738771837769,-1024.48,0.00015252,2]
[351736586,1738771837778,-1024.48,0.00015252,2]
[351736588,1738771837788,-1024.48,0.00015252,2]
[351736590,1738771837797,-1024.48,0.00015252,2]
[351736592,1738771837809,-1024.48,0.00015252,2]
[351736595,1738771837820,-1024.48,0.00015252,2]
[351736597,1738771837829,-1024.48,0.00015252,2]
[351736598,1738771837839,-1024.48,0.00015252,2]
[351736601,1738771837848,-1024.48,0.00015252,2]
[351736603,1738771837858,-666.29,0.00015252,2]
[351736605,1738771837867,-500.0,0.00015252,2]
[351736607,1738771837877,-8064.56,0.00015252,2]
[351736608,1738771837886,-500.0,0.00015252,2]
[351736610,1738771837895,-500.0,0.00015252,2]
[351736613,1738771837905,-2824.03,0.00015252,2]
[351736616,1738771837914,-121803.03,0.00015252,2]
[351736619,1738771837924,-501.76913513,0.00015252,2]
[351736621,1738771837933,-5072.52,0.00015252,2]
[351736623,1738771837943,-3053.28,0.00015252,2]
[351736626,1738771837952,-39760.03,0.00015252,2]
[351736628,1738771837962,-500.0,0.00015252,2]
[351736629,1738771837971,-500.0,0.00015252,2]
[351736632,1738771837981,-500.0,0.00015252,2]
[351736636,1738771837991,-247.02495986,0.00015252,2]
[351736637,1738771838002,-500.0,0.00015252,2]
[351736640,1738771838012,-9497.5,0.00015252,2]
[351736642,1738771838024,-9497.5,0.00015252,2]
[351736643,1738771838034,-9497.5,0.00015252,2]
[351736646,1738771838043,-9497.5,0.00015252,2]
[351736648,1738771838056,-9497.5,0.00015252,2]
[351736651,1738771838068,-9497.5,0.00015252,2]
[351736653,1738771838078,-9497.5,0.00015252,2]
[351736655,1738771838088,-9497.5,0.00015252,2]
[351736657,1738771838099,-795.18,0.00015252,2]
[351736659,1738771838108,-9497.5,0.00015252,2]